fUSD/lending_fUSD_20240426
["ID","MTS","AMOUNT","RATE_DAILY","PERIOD"]
[323640627,1714146675832,-500.0,0.00012366,2]
[323640628,1714146675841,-500.0,0.00012366,2]
[323640629,1714146675850,-500.0,0.00012366,2]
[323640630,1714146675860,-500.0,0.00012366,2]
[323640631,1714146675869,-500.0,0.00012366,2]
[323640632,1714146675878,-500.0,0.00012366,2]
[323640633,1714146675889,-500.0,0.00012366,2]
[323640634,1714146675898,-500.0,0.00012366,2]
[323640635,1714146675907,-500.0,0.00012366,2]
[323640636,1714146675917,-500.0,0.00012366,2]
[323640637,1714146675926,-500.0,0.00012366,2]
[323640638,1714146675935,-500.0,0.00012366,2]
[323640639,1714146675944,-500.0,0.00012366,2]
[323640640,1714146675957,-817.8,0.00012366,2]
[323640641,1714146675967,-500.0,0.00012366,2]
[323640642,1714146675976,-500.0,0.00012366,2]
[323640643,1714146675985,-500.0,0.00012366,2]
[323640644,1714146675994,-500.0,0.00012366,2]
[323640645,1714146676004,-530.95,0.00012366,2]
[323640646,1714146676013,-500.0,0.00012366,2]
[323640647,1714146676022,-447.56316854,0.00012366,2]
[323640648,1714146676031,-500.0,0.00012366,2]
[323640649,1714146676040,-500.0,0.00012366,2]
[323640650,1714146676050,-500.0,0.00012366,2]
[323640651,1714146676059,-500.0,0.00012366,2]
[323640652,1714146676068,-500.0,0.00012366,2]
[323640653,1714146676078,-240.06490498,0.00012366,2]
[323640654,1714146676087,-500.0,0.00012366,2]
[323640655,1714146676096,-500.0,0.00012366,2]
[323640656,1714146676106,-500.0,0.00012366,2]
[323640657,1714146676115,-500.0,0.00012366,2]
[323640658,1714146676124,-500.0,0.00012366,2]
[323640659,1714146676133,-500.0,0.00012366,2]
[323640660,1714146676142,-542.25,0.00012366,2]
[323640661,1714146676152,-500.0,0.00012366,2]
[323640662,1714146676161,-597.96,0.00012366,2]
[323640663,1714146676170,-1358.88,0.00012366,2]
[323640664,1714146676178,-619.11,0.00012366,2]
[323640665,1714146676188,-500.0,0.00012366,2]
[323640666,1714146676197,-1059.13,0.00012366,2]
[323640667,1714146676208,-500.0,0.00012366,2]
[323640668,1714146676216,-500.0,0.00012366,2]
[323640669,1714146676224,-500.0,0.00012366,2]
[323640670,1714146676232,-500.0,0.00012366,2]
[323640671,1714146676241,-500.0,0.00012366,2]
[323640672,1714146676250,-500.0,0.00012366,2]
[323640673,1714146676258,-500.0,0.00012366,2]
[323640674,1714146676266,-621.09,0.00012366,2]
[323640675,1714146676275,-781.34,0.00012366,2]
[323640676,1714146676284,-500.0,0.00012366,2]
[323640677,1714146676292,-500.0,0.00012366,2]
[323640678,1714146676300,-500.0,0.00012366,2]
[323640679,1714146676309,-603.94,0.00012366,2]
[323640680,1714146676318,-500.0,0.00012366,2]
[323640681,1714146676327,-2203.32,0.00012366,2]
[323640682,1714146676337,-741.55,0.00012366,2]
[323640683,1714146676346,-500.0,0.00012366,2]
[323640684,1714146676356,-500.0,0.00012366,2]
[323640685,1714146676365,-707.05,0.00012366,2]
[323640686,1714146676374,-500.0,0.00012366,2]
[323640687,1714146676384,-500.0,0.00012366,2]
[323640688,1714146676393,-500.0,0.00012366,2]
[323640689,1714146676402,-500.0,0.00012366,2]
[323640690,1714146676412,-500.0,0.00012366,2]
[323640691,1714146676421,-1197.27,0.00012366,2]
[323640692,1714146676430,-230.62,0.00012366,2]
[323640693,1714146676440,-525.11,0.00012366,2]
[323640694,1714146676449,-1151.01,0.00012366,2]
[323640695,1714146676465,-1089.37,0.00012366,2]
[323640696,1714146676474,-500.0,0.00012366,2]
[323640697,1714146676684,-500.0,0.00012366,2]
[323640698,1714146676694,-500.0,0.00012366,2]
[323640699,1714146676704,-535.73,0.00012366,2]
[323640700,1714146676713,-1314.57,0.00012366,2]
[323640701,1714146676723,-500.0,0.00012366,2]
[323640702,1714146676731,-500.0,0.00012366,2]
[323640703,1714146676741,-500.0,0.00012366,2]
[323640704,1714146676750,-1247.81,0.00012366,2]
[323640705,1714146676759,-500.0,0.00012366,2]
[323640706,1714146676768,-500.0,0.00012366,2]
[323640707,1714146676777,-731.33,0.00012366,2]
[323640708,1714146676786,-609.72,0.00012366,2]
[323640709,1714146676796,-500.0,0.00012366,2]
[323640710,1714146676805,-713.5,0.00012366,2]
[323640711,1714146676814,-577.85,0.00012366,2]
[323640712,1714146676823,-500.0,0.00012366,2]
[323640713,1714146676833,-500.0,0.00012366,2]
[323640714,1714146676843,-500.0,0.00012366,2]
[323640715,1714146676852,-500.0,0.00012366,2]
[323640716,1714146676861,-1867.18,0.00012366,2]
[323640717,1714146676871,-500.0,0.00012366,2]
[323640718,1714146676881,-500.0,0.00012366,2]
[323640719,1714146676890,-500.0,0.00012366,2]
[323640720,1714146676899,-500.0,0.00012366,2]
[323640721,1714146676908,-1355.9,0.00012366,2]
[323640722,1714146676917,-638.8,0.00012366,2]
[323640723,1714146676927,-500.0,0.00012366,2]
[323640724,1714146676936,-603.07,0.00012366,2]
[323640725,1714146676946,-500.0,0.00012366,2]
[323640726,1714146676957,-500.0,0.00012366,2]
[323640727,1714146676967,-500.0,0.00012366,2]
[323640728,1714146676976,-500.0,0.00012366,2]
[323640729,1714146676984,-500.0,0.00012366,2]
[323640730,1714146676994,-500.0,0.00012366,2]
[323640731,1714146677003,-500.0,0.00012366,2]
[323640732,1714146677013,-500.0,0.00012366,2]
[323640733,1714146677022,-1301.29,0.00012366,2]
[323640734,1714146677032,-500.0,0.00012366,2]
[323640735,1714146677044,-500.0,0.00012366,2]
[323640736,1714146677053,-500.0,0.00012366,2]
[323640737,1714146677062,-500.0,0.00012366,2]
[323640738,1714146677072,-1375.84,0.00012366,2]
[323640739,1714146677081,-500.0,0.00012366,2]
[323640740,1714146677091,-500.0,0.00012366,2]
[323640741,1714146677101,-500.0,0.00012366,2]
[323640742,1714146677111,-678.19,0.00012366,2]
[323640743,1714146677122,-500.0,0.00012366,2]
[323640744,1714146677132,-500.0,0.00012366,2]
[323640745,1714146677141,-724.11,0.00012366,2]
[323640746,1714146677151,-594.9,0.00012366,2]
[323640747,1714146677161,-616.05,0.00012366,2]
[323640748,1714146677171,-500.0,0.00012366,2]
[323640749,1714146677182,-500.0,0.00012366,2]
[323640750,1714146677192,-1741.91,0.00012366,2]
[323640751,1714146677202,-500.0,0.00012366,2]
[323640752,1714146677218,-500.0,0.00012366,2]
[323640753,1714146677228,-645.35,0.00012366,2]
[323640754,1714146677239,-1642.19,0.00012366,2]
[323640755,1714146677248,-500.0,0.00012366,2]
[323640756,1714146677257,-500.0,0.00012366,2]
[323640757,1714146677267,-500.0,0.00012366,2]
[323640758,1714146677276,-500.0,0.00012366,2]
[323640759,1714146677286,-500.0,0.00012366,2]
[323640760,1714146677295,-877.55,0.00012366,2]
[323640761,1714146677304,-500.0,0.00012366,2]
[323640762,1714146677314,-1878.46,0.00012366,2]
[323640763,1714146677323,-500.0,0.00012366,2]
[323640764,1714146677333,-547.46,0.00012366,2]
[323640765,1714146677343,-2626.11,0.00012366,2]
[323640766,1714146677353,-500.0,0.00012366,2]
[323640767,1714146677363,-500.0,0.00012366,2]
[323640768,1714146677372,-500.0,0.00012366,2]
[323640769,1714146677382,-500.0,0.00012366,2]
[323640770,1714146677392,-552.5,0.00012366,2]
[323640771,1714146677401,-800.34,0.00012366,2]
[323640772,1714146677411,-500.0,0.00012366,2]
[323640773,1714146677420,-500.0,0.00012366,2]
[323640774,1714146677431,-500.0,0.00012366,2]
[323640775,1714146677441,-570.54,0.00012366,2]
[323640776,1714146677451,-254.0,0.0001237,2]
[323640777,1714146677464,-500.0,0.00012471,2]
[323640778,1714146677476,-500.0,0.00012471,2]
[323640779,1714146677486,-524.75,0.00012471,2]
[323640780,1714146677497,-500.0,0.00012471,2]
[323640781,1714146677507,-500.0,0.00012471,2]
[323640782,1714146677517,-500.0,0.00012471,2]
[323640783,1714146677527,-500.0,0.00012471,2]
[323640784,1714146677538,-500.0,0.00012471,2]
[323640785,1714146677547,-912.86,0.00012471,2]
[323640786,1714146677557,-500.0,0.00012471,2]
[323640787,1714146677567,-614.45,0.00012471,2]
[323640788,1714146677579,-831.87,0.00012471,2]
[323640789,1714146677588,-500.0,0.00012471,2]
[323640790,1714146677599,-500.0,0.00012471,2]
[323640791,1714146677608,-500.0,0.00012471,2]
[323640792,1714146677618,-500.0,0.00012471,2]
[323640793,1714146677628,-500.0,0.00012471,2]
[323640794,1714146677638,-500.0,0.00012471,2]
[323640795,1714146677648,-500.0,0.00012471,2]
[323640796,1714146677658,-500.0,0.00012471,2]
[323640797,1714146677668,-500.0,0.00012471,2]
[323640798,1714146677677,-491.59397565,0.00012471,2]
[323640799,1714146677687,-500.0,0.00012471,2]
[323640800,1714146677697,-500.0,0.00012471,2]
[323640801,1714146677714,-500.0,0.00012471,2]
[323640802,1714146677723,-1074.39,0.00012471,2]
[323640803,1714146677732,-500.0,0.00012471,2]
[323640804,1714146677742,-500.0,0.00012471,2]
[323640805,1714146677752,-500.0,0.00012471,2]
[323640806,1714146677761,-500.0,0.00012471,2]
[323640807,1714146677770,-500.0,0.00012471,2]
[323640808,1714146677780,-500.0,0.00012471,2]
[323640809,1714146677789,-500.0,0.00012471,2]
[323640810,1714146677799,-500.0,0.00012471,2]
[323640811,1714146677808,-514.657307,0.00012471,2]
[323640812,1714146677817,-500.0,0.00012471,2]
[323640813,1714146677827,-500.0,0.00012471,2]
[323640814,1714146677836,-500.0,0.00012471,2]
[323640815,1714146677845,-500.0,0.00012471,2]
[323640816,1714146677854,-500.0,0.00012471,2]
[323640817,1714146677864,-500.0,0.00012471,2]
[323640818,1714146677874,-500.0,0.00012471,2]
[323640819,1714146677884,-500.0,0.00012471,2]
[323640820,1714146677894,-500.0,0.00012471,2]
[323640821,1714146677904,-532.82,0.00012471,2]
[323640822,1714146677913,-500.0,0.00012471,2]
[323640823,1714146677922,-500.0,0.00012471,2]
[323640824,1714146677931,-506.71802472,0.00012471,2]
[323640825,1714146677941,-500.0,0.00012471,2]
[323640826,1714146677956,-500.0,0.00012471,2]
[323640827,1714146677966,-773.66,0.00012471,2]
[323640828,1714146677974,-838.97,0.00012471,2]
[323640829,1714146677984,-500.0,0.00012471,2]
[323640830,1714146677993,-671.04,0.00012471,2]
[323640831,1714146678002,-500.0,0.00012471,2]
[323640832,1714146678011,-500.0,0.00012471,2]
[323640833,1714146678020,-500.0,0.00012471,2]
[323640834,1714146678029,-724.04,0.00012471,2]
[323640835,1714146678038,-500.0,0.00012471,2]
[323640836,1714146678047,-177.49,0.00012471,2]
[323640837,1714146678056,-500.0,0.00012471,2]
[323640838,1714146678064,-515.99,0.00012471,2]
[323640839,1714146678073,-500.0,0.00012471,2]
[323640840,1714146678114,-659.6,0.00012471,2]
[323640841,1714146678123,-500.0,0.00012471,2]
[323640842,1714146678132,-500.0,0.00012471,2]
[323640843,1714146678141,-543.48,0.00012471,2]
[323640844,1714146678151,-500.0,0.00012471,2]
[323640845,1714146678160,-605.67,0.00012471,2]
[323640846,1714146678170,-804.0,0.00012471,2]
[323640847,1714146678179,-500.0,0.00012471,2]
[323640848,1714146678188,-500.0,0.00012471,2]
[323640849,1714146678198,-500.0,0.00012471,2]
[323640850,1714146678210,-500.0,0.00012471,2]
[323640851,1714146678219,-365.98,0.00012471,2]
[323640852,1714146678230,-512.65,0.00012471,2]
[323640853,1714146678239,-500.0,0.00012471,2]
[323640854,1714146678249,-500.0,0.00012471,2]
[323640855,1714146678258,-500.0,0.00012471,2]
[323640856,1714146678268,-500.0,0.00012471,2]
[323640857,1714146678277,-500.0,0.00012471,2]
[323640858,1714146678286,-733.06,0.00012471,2]
[323640859,1714146678295,-500.0,0.00012471,2]
[323640860,1714146678304,-500.0,0.00012471,2]
[323640861,1714146678314,-500.0,0.00012471,2]
[323640862,1714146678324,-500.0,0.00012471,2]
[323640863,1714146678335,-500.0,0.00012471,2]
[323640864,1714146678345,-500.0,0.00012471,2]
[323640865,1714146678359,-500.0,0.00012471,2]
[323640866,1714146678379,-584.14,0.00012471,2]
[323640867,1714146678395,-500.0,0.00012471,2]
[323640868,1714146678410,-668.64,0.00012471,2]
[323640869,1714146678428,-647.0,0.00012471,2]
[323640870,1714146678445,-535.33,0.00012471,2]
[323640871,1714146678464,-500.0,0.00012471,2]
[323640872,1714146678481,-500.0,0.00012471,2]
[323640873,1714146678496,-500.0,0.00012471,2]
[323640874,1714146678514,-500.0,0.00012471,2]
[323640875,1714146678527,-500.0,0.00012471,2]
[323640876,1714146678546,-500.0,0.00012471,2]
[323640877,1714146678563,-500.0,0.00012471,2]
[323640878,1714146678579,-500.0,0.00012471,2]
[323640879,1714146678595,-500.0,0.00012471,2]
[323640880,1714146678613,-500.0,0.00012471,2]
[323640881,1714146678632,-500.0,0.00012471,2]
[323640882,1714146678647,-549.83,0.00012471,2]
[323640883,1714146678660,-500.0,0.00012471,2]
[323640884,1714146678676,-500.0,0.00012471,2]
[323640885,1714146678692,-500.0,0.00012471,2]
[323640886,1714146678707,-500.0,0.00012471,2]
[323640887,1714146678720,-500.0,0.00012471,2]
[323640888,1714146678734,-500.0,0.00012471,2]
[323640889,1714146678748,-500.0,0.00012471,2]
[323640890,1714146678763,-500.0,0.00012471,2]
[323640891,1714146678778,-500.0,0.00012471,2]
[323640892,1714146678791,-500.0,0.00012471,2]
[323640893,1714146678806,-500.0,0.00012471,2]
[323640894,1714146678821,-500.0,0.00012471,2]
[323640895,1714146678836,-4980.52180734,0.00012474,2]
[323640896,1714146678851,-254.0,0.0001248,2]
[323640897,1714146678865,-251.69476738,0.000125,2]
[323640898,1714146678879,-254.0,0.0001258,2]
[323640899,1714146678893,-500.0,0.00012591,2]
[323640900,1714146678907,-500.0,0.000126,2]
[323640901,1714146678921,-500.0,0.00012609,2]
[323640902,1714146678935,-500.0,0.00012618,2]
[323640903,1714146678949,-160.0,0.00012621,2]
[323640904,1714146678965,-500.0,0.00012626,2]
[323640905,1714146678979,-500.0,0.00012635,2]
[323640906,1714146678993,-350.3,0.00012637,2]
[323640907,1714146679006,-500.0,0.00012637,2]
[323640908,1714146679020,-644.42,0.00012637,2]
[323640909,1714146679034,-500.0,0.00012638,2]
[323640910,1714146679048,-500.0,0.00012638,2]
[323640911,1714146679061,-500.0,0.00012638,2]
[323640912,1714146679074,-500.0,0.00012638,2]
[323640913,1714146679087,-500.0,0.00012638,2]
[323640914,1714146679101,-624.43222912,0.00012638,2]
[323640915,1714146679116,-500.0,0.00012638,2]
[323640916,1714146679129,-500.0,0.00012638,2]
[323640917,1714146679142,-500.0,0.00012638,2]
[323640918,1714146679160,-500.0,0.00012638,2]
[323640919,1714146679175,-504.91378457,0.00012638,2]
[323640920,1714146679189,-500.0,0.00012638,2]
[323640921,1714146679203,-500.0,0.00012638,2]
[323640922,1714146679219,-12541.59,0.00012638,2]
[323640923,1714146679234,-3067.93,0.00012638,2]
[323640924,1714146679248,-683.29,0.00012638,2]
[323640925,1714146679263,-532.8,0.00012638,2]
[323640926,1714146679277,-1060.15,0.00012638,2]
[323640927,1714146679291,-4294.42,0.00012638,2]
[323640928,1714146679305,-500.0,0.00012638,2]
[323640929,1714146679318,-500.0,0.00012638,2]
[323640930,1714146679333,-500.0,0.00012638,2]
[323640931,1714146679348,-539.52,0.00012638,2]
[323640932,1714146679361,-500.0,0.00012638,2]
[323640933,1714146679375,-500.0,0.00012638,2]
[323640934,1714146679389,-2839.5,0.00012638,2]
[323640935,1714146679403,-473.8,0.00012638,2]
[323640936,1714146679417,-500.0,0.00012638,2]
[323640937,1714146679432,-500.0,0.00012638,2]
[323640938,1714146679445,-594.61,0.00012638,2]
[323640939,1714146679462,-542.97,0.00012638,2]
[323640940,1714146679477,-786.04,0.00012638,2]
[323640941,1714146679492,-500.0,0.00012638,2]
[323640942,1714146679507,-500.0,0.00012638,2]
[323640943,1714146679521,-633.46,0.00012638,2]
[323640944,1714146679535,-2454.05,0.00012638,2]
[323640945,1714146679550,-500.0,0.00012638,2]
[323640946,1714146679564,-500.0,0.00012638,2]
[323640947,1714146679578,-500.0,0.00012638,2]
[323640948,1714146679593,-556.65,0.00012638,2]
[323640949,1714146679608,-500.0,0.00012638,2]
[323640950,1714146679622,-783.76,0.00012638,2]
[323640951,1714146679636,-603.38,0.00012638,2]
[323640952,1714146679649,-1769.72,0.00012638,2]
[323640953,1714146679664,-500.0,0.00012638,2]
[323640954,1714146679680,-541.56,0.00012638,2]
[323640955,1714146679694,-2540.34,0.00012638,2]
[323640956,1714146679712,-591.93,0.00012638,2]
[323640957,1714146679727,-545.47,0.00012638,2]
[323640958,1714146679740,-500.0,0.00012638,2]
[323640959,1714146679754,-500.0,0.00012638,2]
[323640960,1714146679768,-500.0,0.00012638,2]
[323640961,1714146679782,-4729.62,0.00012638,2]
[323640962,1714146679796,-500.0,0.00012638,2]
[323640963,1714146679809,-1995.34,0.00012638,2]
[323640964,1714146679825,-586.34,0.00012638,2]
[323640965,1714146679839,-500.0,0.00012638,2]
[323640966,1714146679854,-500.0,0.00012638,2]
[323640967,1714146679869,-2124.66,0.00012638,2]
[323640968,1714146679883,-3161.41,0.00012638,2]
[323640969,1714146679898,-1952.38,0.00012638,2]
[323640970,1714146679912,-500.0,0.00012638,2]
[323640971,1714146679926,-2807.16,0.00012638,2]
[323640972,1714146679940,-500.0,0.00012638,2]
[323640973,1714146679953,-500.0,0.00012638,2]
[323640974,1714146679968,-638.27,0.00012638,2]
[323640975,1714146679983,-500.0,0.00012638,2]
[323640976,1714146679996,-500.0,0.00012638,2]
[323640977,1714146680010,-3223.34,0.00012638,2]
[323640978,1714146680025,-680.69,0.00012638,2]
[323640979,1714146680039,-500.0,0.00012638,2]
[323640980,1714146680054,-500.0,0.00012638,2]
[323640981,1714146680068,-2296.89,0.00012638,2]
[323640982,1714146680084,-500.0,0.00012638,2]
[323640983,1714146680098,-500.0,0.00012638,2]
[323640984,1714146680113,-2368.71,0.00012638,2]
[323640985,1714146680129,-150.0,0.00012638,2]
[323640986,1714146680144,-3149.73,0.00012638,2]
[323640987,1714146680159,-500.0,0.00012638,2]
[323640988,1714146680174,-500.0,0.00012638,2]
[323640989,1714146680188,-500.0,0.00012638,2]
[323640990,1714146680203,-7711.79,0.00012638,2]
[323640991,1714146680220,-712.4,0.00012638,2]
[323640992,1714146680234,-2752.21,0.00012638,2]
[323640993,1714146680249,-500.0,0.00012638,2]
[323640994,1714146680263,-1361.6,0.00012638,2]
[323640995,1714146680278,-743.13,0.00012638,2]
[323640996,1714146680294,-500.0,0.00012638,2]
[323640997,1714146680310,-500.0,0.00012638,2]
[323640998,1714146680326,-1414.54,0.00012638,2]
[323640999,1714146680340,-770.5,0.00012638,2]
[323641000,1714146680350,-3239.13,0.00012638,2]
[323641001,1714146680361,-500.0,0.00012638,2]
[323641002,1714146680372,-1163.36,0.00012638,2]
[323641003,1714146680382,-6880.92,0.00012638,2]
[323641004,1714146680392,-500.0,0.00012638,2]
[323641005,1714146680403,-525.52,0.00012638,2]
[323641006,1714146680413,-310.55660521,0.00012638,2]
[323641007,1714146680423,-2621.73,0.00012638,2]
[323641008,1714146680433,-500.0,0.00012638,2]
[323641009,1714146680443,-2133.22,0.00012638,2]
[323641010,1714146680454,-653.66,0.00012638,2]
[323641011,1714146680472,-1077.73,0.00012638,2]
[323641012,1714146680482,-500.0,0.00012638,2]
[323641013,1714146680493,-580.16,0.00012638,2]
[323641014,1714146680503,-500.0,0.00012638,2]
[323641015,1714146680513,-4821.94,0.00012638,2]
[323641016,1714146680523,-2598.62,0.00012638,2]
[323641017,1714146680533,-500.0,0.00012638,2]
[323641018,1714146680543,-500.0,0.00012638,2]
[323641019,1714146680554,-1060.82,0.00012638,2]
[323641020,1714146680564,-500.0,0.00012638,2]
[323641021,1714146680574,-500.0,0.00012638,2]
[323641022,1714146680585,-500.0,0.00012638,2]
[323641023,1714146680594,-584.82,0.00012638,2]
[323641024,1714146680604,-1830.64,0.00012638,2]
[323641025,1714146680614,-1584.6,0.00012638,2]
[323641026,1714146680624,-500.0,0.00012638,2]
[323641027,1714146681064,-500.0,0.00012638,2]
[323641028,1714146681101,-1347.81,0.00012638,2]
[323641029,1714146681125,-500.0,0.00012638,2]
[323641030,1714146681138,-500.0,0.00012638,2]
[323641031,1714146681167,-5879.51,0.00012638,2]
[323641032,1714146681230,-6325.77,0.00012638,2]
[323641033,1714146681312,-500.0,0.00012638,2]
[323641034,1714146681323,-500.0,0.00012638,2]
[323641035,1714146681334,-500.0,0.00012638,2]
[323641036,1714146681344,-7205.06,0.00012638,2]
[323641037,1714146681355,-1130.16,0.00012638,2]
[323641038,1714146681366,-4293.14,0.00012638,2]
[323641039,1714146681377,-500.0,0.00012638,2]
[323641040,1714146681387,-500.0,0.00012638,2]
[323641041,1714146681397,-500.0,0.00012638,2]
[323641042,1714146681409,-4451.04,0.00012638,2]
[323641043,1714146681419,-500.0,0.00012638,2]
[323641044,1714146681429,-426.27729131,0.00012638,2]
[323641045,1714146681440,-813.86,0.00012638,2]
[323641046,1714146681451,-500.0,0.00012638,2]
[323641047,1714146681464,-8640.83,0.00012638,2]
[323641048,1714146681473,-505.37985412,0.00012639,2]
[323641049,1714146681484,-500.0,0.00012639,2]
[323641050,1714146681497,-500.0,0.00012639,2]
[323641051,1714146681507,-500.0,0.00012639,2]
[323641052,1714146681517,-500.0,0.00012639,2]
[323641053,1714146681527,-500.0,0.00012639,2]
[323641054,1714146681539,-500.0,0.00012639,2]
[323641055,1714146681549,-500.0,0.00012639,2]
[323641056,1714146681559,-500.0,0.00012639,2]
[323641057,1714146681570,-500.0,0.00012639,2]
[323641058,1714146681580,-586.06,0.00012639,2]
[323641059,1714146681589,-500.0,0.00012639,2]
[323641060,1714146681600,-500.0,0.00012639,2]
[323641061,1714146681610,-439.25449021,0.00012639,2]
[323641062,1714146681620,-551.67,0.00012639,2]
[323641063,1714146681631,-500.0,0.00012639,2]
[323641064,1714146681641,-536.41,0.00012639,2]
[323641065,1714146681652,-367.62,0.00012639,2]
[323641066,1714146681662,-500.0,0.00012639,2]
[323641067,1714146681673,-500.0,0.00012639,2]
[323641068,1714146681684,-500.0,0.00012639,2]
[323641069,1714146681695,-500.02,0.00012639,2]
[323641070,1714146681707,-500.0,0.00012639,2]
[323641071,1714146681718,-890.43,0.00012639,2]
[323641072,1714146681728,-899.93,0.00012639,2]
[323641073,1714146681738,-500.0,0.00012639,2]
[323641074,1714146681748,-500.0,0.00012639,2]
[323641075,1714146681758,-740.2,0.00012639,2]
[323641076,1714146681768,-669.41,0.00012639,2]
[323641077,1714146681778,-714.54,0.00012639,2]
[323641078,1714146681788,-500.0,0.00012639,2]
[323641079,1714146681798,-500.0,0.00012639,2]
[323641080,1714146681808,-703.44,0.00012639,2]
[323641081,1714146681816,-500.0,0.00012639,2]
[323641082,1714146681826,-500.0,0.00012639,2]
[323641083,1714146681837,-1007.49,0.00012639,2]
[323641084,1714146681847,-673.51,0.00012639,2]
[323641085,1714146681857,-500.0,0.00012639,2]
[323641086,1714146681868,-500.0,0.00012639,2]
[323641087,1714146681879,-500.0,0.00012639,2]
[323641088,1714146681889,-816.79,0.00012639,2]
[323641089,1714146681900,-500.0,0.00012639,2]
[323641090,1714146681910,-787.38,0.00012639,2]
[323641091,1714146681921,-500.0,0.00012639,2]
[323641092,1714146681931,-500.0,0.00012639,2]
[323641093,1714146681942,-976.83,0.00012639,2]
[323641094,1714146681951,-500.0,0.00012639,2]
[323641095,1714146681965,-500.0,0.00012639,2]
[323641096,1714146681976,-1809.25,0.00012639,2]
[323641097,1714146681986,-500.0,0.00012639,2]
[323641098,1714146681996,-2201.55,0.00012639,2]
[323641099,1714146682006,-500.0,0.00012639,2]
[323641100,1714146682017,-500.0,0.00012639,2]
[323641101,1714146682027,-2475.02,0.00012639,2]
[323641102,1714146682037,-1021.24,0.00012639,2]
[323641103,1714146682048,-906.43,0.00012639,2]
[323641104,1714146682058,-500.0,0.00012639,2]
[323641105,1714146682069,-500.0,0.00012639,2]
[323641106,1714146682080,-1082.39,0.00012639,2]
[323641107,1714146682091,-1734.07,0.00012639,2]
[323641108,1714146682101,-500.0,0.00012639,2]
[323641109,1714146682112,-507.5,0.00012639,2]
[323641110,1714146682123,-500.0,0.00012639,2]
[323641111,1714146682134,-500.0,0.00012639,2]
[323641112,1714146682144,-500.0,0.00012639,2]
[323641113,1714146682155,-412.45,0.00012639,2]
[323641114,1714146682165,-1366.4,0.00012639,2]
[323641115,1714146682174,-500.0,0.00012639,2]
[323641116,1714146682185,-500.0,0.00012639,2]
[323641117,1714146682195,-503.96428319,0.00012639,2]
[323641118,1714146682205,-1005.72,0.00012639,2]
[323641119,1714146682217,-500.0,0.00012639,2]
[323641120,1714146682227,-500.0,0.00012639,2]
[323641121,1714146682237,-500.0,0.00012639,2]
[323641122,1714146682247,-500.0,0.00012639,2]
[323641123,1714146682257,-500.0,0.00012639,2]
[323641124,1714146682267,-500.0,0.00012639,2]
[323641125,1714146682279,-1013.72,0.00012639,2]
[323641126,1714146682288,-988.03,0.00012639,2]